Cogmind - Beta 15 @@@ ROGUE MODE // 2025.05.11 @ 18:36:25 Player: Ultra Sane Result: Self-destructed Performance ------------- Evolutions (5) 2500 Regions Visited (4) 800 Robots Destroyed (15) 75 Value Destroyed (159) 159 Prototype IDs (17) 340 Alien Tech Used (0) 0 Bonus (300) 300 TOTAL SCORE: 4174 Bonus ------- Registered with UFD 300 Cogmind --------- Core Integrity 884/1000 Matter 214/300 Energy 100/100 System Corruption 0% Temperature Cool (0) Movement Flying (40) Location -5/Factory Parts ------- > --- POWER (2) -------- (None) > --- PROPULSION (7) --- Flight Unit > --- UTILITY (6) ------ Triangulator Experimental Terrain Scan Processor > --- WEAPON (2) ------- (None) > --- INVENTORY (5) ---- IFF Parser Advanced ECM Suite Advanced Drone Bay (2/2) Remote Datajack Peak State ------------ > --- POWER ------------ Light Nuclear Core Neutrino Core > --- PROPULSION ------- Flight Unit Flight Unit Xenon Bombardment Thruster > --- UTILITY ---------- Improved Terrain Scanner Experimental Terrain Scan Processor Point Defense System Hacking Suite System Restoration Module > --- WEAPON ----------- Light Assault Rifle Remote Datajack > --- INVENTORY -------- Advanced Shield Generator Improved Recalibrator Neutron Cannon [Rating: 45] Favorites ----------- Power Light Nuclear Core Engine Ion Engine Power Core Light Nuclear Core Propulsion Flight Unit Leg Aluminum Leg Flight Unit Flight Unit Utility Improved Terrain Scanner Device Improved Terrain Scanner Storage Small Storage Unit Processor Experimental Terrain Scan Processor Hackware Hacking Suite Weapon Light Assault Rifle Energy Gun Small Laser Ballistic Gun Light Assault Rifle Special Weapon Remote Datajack Build | -11 -10 -10 -7 -5 ------- Run | Yrd Mat Sub Scr Fac Slots Evolved 10 | . . . . 10 Power 1 | . . . . 1 Propulsion 5 | . . . . 5 Utility 4 | . . . . 4 Weapon . | . . . . . Parts Attached 27 | 8 6 1 2 10 Power 4 | 1 2 . . 1 Engine 2 | 1 1 . . . Core 2 | . 1 . . 1 Reactor . | . . . . . Propulsion 7 | 2 3 . . 2 Treads . | . . . . . Leg 2 | 2 . . . . Wheel . | . . . . . Hover . | . . . . . Flight 5 | . 3 . . 2 Utility 10 | 3 . . 1 6 Device 7 | 2 . . 1 4 Storage 1 | 1 . . . . Processor 1 | . . . . 1 Hackware 1 | . . . . 1 Protection . | . . . . . Artifact . | . . . . . Weapon 6 | 2 1 1 1 1 Energy Gun 1 | 1 . . . . Energy Cannon . | . . . . . Ballistic Gun 3 | 1 1 . 1 . Ballistic Cannon . | . . . . . Launcher . | . . . . . Special Weapon 2 | . . 1 . 1 Impact Weapon . | . . . . . Slashing Weapon . | . . . . . Piercing Weapon . | . . . . . Special Melee Weapon . | . . . . . Unidentified Prototypes . | . . . . . Parts Lost 9 | . 1 . . 8 Power 1 | . . . . 1 Propulsion 4 | . 1 . . 3 Utility 2 | . . . . 2 Weapon 2 | . . . . 2 Highest Loss Streak 5 | . 1 . . 5 To Critical Strikes . | . . . . . Average Backups 3 | 1 3 4 4 2 Power . | . . 1 . . Propulsion 1 | . 1 2 2 . Utility . | . . . 1 1 Weapon . | . 1 1 . . Tool/Special . | . . . . . Unused Backups 10 | 1 1 . 2 6 Power . | . . . . . Propulsion 3 | . 1 . 2 . Utility 5 | 1 . . . 4 Weapon 1 | . . . . 1 Tool/Special 1 | . . . . 1 Average Slot Usage (%) 81 | . 93 85 85 61 Engine 2 | . 10 . . . Core 9 | . 3 14 14 4 Leg 1 | . 8 . . . Flight 23 | . 19 28 28 17 Device 25 | . 26 28 28 17 Processor 1 | . . . . 4 Energy Gun 2 | . 9 . . . Ballistic Gun 10 | . 14 11 14 4 Special Weapon 1 | . . 3 . 3 Peak Build Rating 45 | 9 11 12 15 45 Average Rating 16 | 7 8 10 13 38 On Entrance 9 | . 9 10 11 15 Naked Turns . | . . . . . Heaviest Build 14 | 14 10 9 8 14 Greatest Support 20 | 20 20 8 8 20 Greatest Overweight (x) 1 | . 1 1 . 1 Average Overweight (x) . | . . . . . Largest Inventory Capacity 8 | 8 5 5 5 5 Average Capacity 5 | 7 5 5 5 5 Most Carried 5 | 4 5 5 5 5 Average Carried 3 | 1 3 4 4 2 Final Capacity 5 | 5 5 5 5 5 Final Carried 5 | 1 4 5 5 5 Class Distribution -------------------- 75% | Scavenger-Mutant 18% | Mutant 6% | Scavenger-Sprinter Dominant Class ---------------- Scavenger-Mutant | -10/Materials Scavenger-Mutant | -10/Subcaves Scavenger-Mutant | -7/Scraptown Scavenger-Mutant | -5/Factory Resources | -11 -10 -10 -7 -5 ----------- Run | Yrd Mat Sub Scr Fac Matter Collected 524 | 247 145 80 24 28 Remotely . | . . . . . Salvage Created 371 | 163 180 . . 28 Parts 33 | 10 20 . . 3 Haulers Intercepted . | . . . . . Recyclers Shooed . | . . . . . Parts Field Recycled . | . . . . . Retrieved Matter . | . . . . . Parts Self-Destructed . | . . . . . Prevented . | . . . . . Kills | -11 -10 -10 -7 -5 ------- Run | Yrd Mat Sub Scr Fac Combat Hostiles Destroyed 7 | . 7 . . . Guns 7 | . 7 . . . Classes Destroyed 6 | 3 3 . . . Worker 2 | 2 . . . . Tunneler 4 | 2 1 . . 1 Recycler 1 | 1 . . . . Watcher 1 | . 1 . . . Swarmer 6 | . 6 . . . Grunt 1 | . 1 . . . Best Kill Streak 5 | 3 5 . . 1 Combat Bots Only 4 | . 4 . . . Max Kills in Single Turn 1 | 1 1 . . 1 Gunslinging . | . . . . . Exploded . | . . . . . Melee . | . . . . . Uniques/NPCs Destroyed . | . . . . . Combat | -11 -10 -10 -7 -5 -------- Run | Yrd Mat Sub Scr Fac Hostile Shots Fired 108 | . 63 . . 45 Missed 44 | . 23 . . 21 Hits 64 | . 40 . . 24 Projectile 64 | . 40 . . 24 Critical Strikes 1 | . 1 . . . Damage Taken 840 | . 364 31 . 445 Core 259 | . 131 12 . 116 Absorbed by Shields 31 | . . . . 31 Regen/Repaired (Parts) 20 | . 20 . . . Core Remaining (%) 71 | 100 . . 42 . Volleys Fired 65 | 20 31 . . 14 Largest 2 | 2 2 . . 1 Hottest 60 | 60 60 . . 20 Shots Fired 107 | 38 55 . . 14 Gun 107 | 38 55 . . 14 Cannon . | . . . . . Launcher . | . . . . . Special . | . . . . . Kinetic 65 | 20 31 . . 14 Thermal 42 | 18 24 . . . Explosive . | . . . . . Electromagnetic . | . . . . . Robot Hit Streak 11 | 11 5 . . 7 Robot Miss Streak 4 | 3 4 . . 2 Penetration Max . | . . . . . Secondary Targets 3 | . 3 . . . Max Gunslinging Chain 1 | . 1 . . . Shots Hit Robots 66 | 26 30 . . 10 Core Hits 27 | 6 15 . . 6 Critical Kills . | . . . . . Critical Parts Destroyed 1 | . . . . 1 Critical Strikes 1 | . . . . 1 Destroy 1 | . . . . 1 Melee Attacks . | . . . . . Impact . | . . . . . Slashing . | . . . . . Piercing . | . . . . . Sneak Attacks . | . . . . . Combat Hostiles . | . . . . . Follow-up Attacks . | . . . . . Damage Inflicted 662 | 295 284 . . 83 Guns 662 | 295 284 . . 83 Cannons . | . . . . . Explosions . | . . . . . Melee . | . . . . . Ramming . | . . . . . Kinetic 417 | 168 166 . . 83 Thermal 245 | 127 118 . . . Explosive . | . . . . . Electromagnetic . | . . . . . Impact . | . . . . . Slashing . | . . . . . Piercing . | . . . . . Highest Corruption . | . . . . . Average Corruption . | . . . . . Corruption Purged . | . . . . . Corruption Blocked . | . . . . . Overload Shots . | . . . . . Overflow Damage . | . . . . . Projectiles . | . . . . . Explosions . | . . . . . Melee . | . . . . . Knockbacks . | . . . . . Impact . | . . . . . Kinetic . | . . . . . Secondary . | . . . . . Self-Inflicted Damage . | . . . . . Shots . | . . . . . Rammed . | . . . . . Targets Rammed . | . . . . . Kicked . | . . . . . Crushed . | . . . . . Highest Temperature 174 | . 174 . . . Average Temperature 61 | . 61 . . . Received Heat Transfer 174 | . 78 . . 96 Siege Activations . | . . . . . Martial Activations . | . . . . . Shielding Activations . | . . . . . Robots Disrupted . | . . . . . Combat Hostiles . | . . . . . Robots Corrupted . | . . . . . Combat Hostiles . | . . . . . Parts Fried . | . . . . . Impact Corruptions . | . . . . . Robots Melted . | . . . . . Combat Hostiles . | . . . . . Parts Melted . | . . . . . Heat Transferred 575 | 300 275 . . . Parts Sabotaged . | . . . . . Parts Stolen . | . . . . . Parts Stripped . | . . . . . Power Chain Reactions . | . . . . . Alert | -11 -10 -10 -7 -5 ------- Run | Yrd Mat Sub Scr Fac Maximum Alert Level 1 | . 1 . . . Low Security (%) 97 | 100 93 . . 100 Level 1 2 | . 6 . . . Level 2 . | . . . . . Level 3 . | . . . . . Level 4 . | . . . . . Level 5 . | . . . . . High Security . | . . . . . Max Security . | . . . . . Peak Influence 202 | 5 202 . . 75 Initial . | . . . . . Average 38 | . 86 . . 13 Influence Increases 512 | 25 317 . . 170 Destroy 0b10 Robot/C 140 | . 140 . . . Destroy 0b10 Robot/NC 40 | 25 10 . . 5 Destroy Leader 32 | . 32 . . . Partial Spotted 15 | . 15 . . . Lose Combat Pursuer 285 | . 120 . . 165 Influence Decreases 492 | 25 140 177 . 150 Entered New Map 85 | . . 85 . . Time Decay 332 | 25 130 92 . 85 Lost Part 75 | . 10 . . 65 Squads Dispatched 5 | . 2 . . 3 Investigation 2 | . 1 . . 1 Extermination 1 | . . . . 1 Reinforcement 2 | . 1 . . 1 Assault . | . . . . . Garrison . | . . . . . Intercept . | . . . . . Searches Triggered . | . . . . . Construction Impeded . | . . . . . Haulers Reinforced . | . . . . . Active Scanning Responses . | . . . . . Cargo Convoy Interrupts . | . . . . . Stealth | -11 -10 -10 -7 -5 --------- Run | Yrd Mat Sub Scr Fac Distress Signals 5 | . 2 . . 3 Communications Jammed . | . . . . . Distress Signals . | . . . . . Times Spotted 40 | . 18 . . 22 Peak Tracking Total 11 | . 6 . . 11 Tactical Retreats 8 | . 3 . . 5 Traps | -11 -10 -10 -7 -5 ------- Run | Yrd Mat Sub Scr Fac Traps Triggered 3 | . . 1 . 2 Indirectly . | . . . . . Trap Hack Attempts . | . . . . . Triggered . | . . . . . Disarmed . | . . . . . Reprogrammed . | . . . . . Reused . | . . . . . Traps Extracted . | . . . . . Installed . | . . . . . Triggered . | . . . . . Machines | -11 -10 -10 -7 -5 ---------- Run | Yrd Mat Sub Scr Fac Machines Disabled . | . . . . . Max in Single Turn . | . . . . . Machines Repaired . | . . . . . Machines Dismantled . | . . . . . Machines Sabotaged . | . . . . . Overloaded Fab Kills . | . . . . . Hacking | -11 -10 -10 -7 -5 --------- Run | Yrd Mat Sub Scr Fac Machines Accessed 5 | . 1 1 1 2 Terminals 1 | . . . . 1 Fabricators . | . . . . . Repair Stations 1 | . 1 . . . Recycling Units . | . . . . . Scanalyzers 1 | . . . . 1 Garrison Access . | . . . . . Total Hacks 21 | . 5 9 3 4 Successful 17 | . 2 9 3 3 Failed 4 | . 3 . . 1 Catastrophic . | . . . . . Database Lockouts . | . . . . . Manual . | . . . . . Terminals 1 | . . . . 1 Fabricators . | . . . . . Repair Stations 5 | . 5 . . . Recycling Units . | . . . . . Scanalyzers 3 | . . . . 3 Garrison Access . | . . . . . Terminal Hacks 13 | . . 9 3 1 Record 11 | . . 8 3 . Open DSF 1 | . . . . 1 Proto ID Catalog 1 | . . 1 . . Fabricator Hacks . | . . . . . Repair Station Hacks 2 | . 2 . . . Scan Component 1 | . 1 . . . Repair 1 | . 1 . . . Recycling Unit Hacks . | . . . . . Scanalyzer 2 | . . . . 2 Insert Component 1 | . . . . 1 Analyze 1 | . . . . 1 Garrison Access Hacks . | . . . . . Unauthorized Hacks . | . . . . . Terminals . | . . . . . Fabricators . | . . . . . Repair Stations . | . . . . . Recycling Units . | . . . . . Scanalyzers . | . . . . . Garrison Access . | . . . . . Data Cores Recovered . | . . . . . Used . | . . . . . Hacking Detections 2 | . 1 . . 1 Full Trace Events 2 | . 1 . . 1 Feedback Events . | . . . . . Feedback Blocked . | . . . . . Robot Schematics Acquired . | . . . . . Robots Built . | . . . . . Authchips . | . . . . . Time . | . . . . . Total Robot Build Rating . | . . . . . Part Schematics Acquired 1 | . . . . 1 Parts Built . | . . . . . Authchips . | . . . . . Time . | . . . . . Total Part Build Rating . | . . . . . Parts Repaired 1 | . 1 . . . Time 38 | . 38 . . . Parts Recycled . | . . . . . Recycled Matter . | . . . . . Retrieved Matter . | . . . . . Retrieved Components . | . . . . . Parts Scanalyzed 1 | . . . . 1 Part Schematics Acquired 1 | . . . . 1 Parts Damaged . | . . . . . Bothacking | -11 -10 -10 -7 -5 ------------ Run | Yrd Mat Sub Scr Fac Used RIF Installer . | . . . . . Robots Hacked . | . . . . . Non-combat . | . . . . . Combat . | . . . . . Robot Hacks Applied . | . . . . . Relay Couplers Released . | . . . . . Fabnet Peak Effective % . | . . . . . Robots Rewired . | . . . . . Allies Hacked . | . . . . . Hacks Repelled . | . . . . . Allies | -11 -10 -10 -7 -5 -------- Run | Yrd Mat Sub Scr Fac Total Allies . | . . . . . Largest Group . | . . . . . Highest-Rated Group . | . . . . . Highest-Rated Ally . | . . . . . Total Orders . | . . . . . Ally Attacks . | . . . . . Total Damage . | . . . . . Kills . | . . . . . Allies Corrupted . | . . . . . Allies Melted . | . . . . . Intel | -11 -10 -10 -7 -5 ------- Run | Yrd Mat Sub Scr Fac Active Infowar (turns) 1479 | 89 314 415 319 342 Terrain 1429 | 89 275 415 319 331 Seismic 811 | 17 314 415 65 . Triangulation 155 | . . . . 155 Robot Analysis Total . | . . . . . Derelict Logs Recovered . | . . . . . Drone Launches . | . . . . . Drone Recoveries . | . . . . . Exploration | -11 -10 -10 -7 -5 ------------- Run | Yrd Mat Sub Scr Fac Turns Passed 1558 | 165 314 415 319 345 Spaces Moved 2167 | 72 317 285 821 672 Core 9 | 9 . . . . Treads . | . . . . . Legs 99 | 63 36 . . . Wheels . | . . . . . Hover . | . . . . . Flight 2059 | . 281 285 821 672 Fastest Speed 31 | 50 37 37 37 31 Average Speed 43 | 111 46 57 37 35 Slowest Speed 120 | 120 120 117 37 117 Overloaded Moves . | . . . . . Propulsion Burnouts . | . . . . . Robots Hopped 4 | . 2 2 . . Potential Cave-ins . | . . . . . Cave-ins Triggered . | . . . . . Exploration Rate (%) 30 | 5 41 23 64 20 Regions Visited 4 Branch Regions 2 Pre-discovered Areas . | . . . . . Known Exits Taken . | . . . . . Unknown Exits Taken 4 | 1 1 1 1 . Scrap Searched 5 | . . 2 3 . Spaces Dug . | . . . . . Terrain Destroyed . | . . . . . Melee . | . . . . . Projectile . | . . . . . AOE . | . . . . . Terrain Rammed . | . . . . . Walls Destroyed . | . . . . . Machines Disabled . | . . . . . Actions | -11 -10 -10 -7 -5 --------- Run | Yrd Mat Sub Scr Fac Total 2697 | 119 434 534 837 773 Wait 341 | 8 60 249 3 21 Move 2156 | 71 312 281 820 672 Hop 3 | . 2 1 . . Pick Up 39 | 10 10 1 6 12 Fast Attach . | . . . . . Attach 27 | 7 6 1 . 13 Detach 12 | . 4 1 . 7 Swap 6 | 1 3 . 2 . Drop 21 | 2 6 . 6 7 Fire 65 | 20 31 . . 14 Melee . | . . . . . Ram . | . . . . . Kick . | . . . . . Crush . | . . . . . Escape Stasis 27 | . . . . 27 Rewire . | . . . . . Trap . | . . . . . Miscellaneous . | . . . . . Route ------- -11/Scrapyard -10/Materials -10/Subcaves -7/Scraptown -5/Factory History --------- Turn | Location | Event 3 | -11/Scrapyard | Discovered new exit (range 16) 166 | -11/Scrapyard | Entered Materials 167 | -10/Materials | Met a group of wandering Federalists 185 | -10/Materials | Discovered new exit (range 6) 395 | -10/Materials | Core integrity fell below 50% 462 | -10/Materials | Repaired Imp. Terrain Scanner 480 | -10/Materials | Entered Subcaves 481 | -10/Subcaves | Continued accompanying wandering Federalists (6) 560 | -10/Subcaves | Build established: Scavenger-Mutant 705 | -10/Subcaves | Wandering Federalist uncovered a shortcut to Scraptown 818 | -10/Subcaves | Visited 4L-MR0's lab 895 | -10/Subcaves | Entered Scraptown 989 | -7/Scraptown | Visited UFD Registry 990 | -7/Scraptown | Registered with UFD as "Pyrosys" 1007 | -7/Scraptown | Visited Cartography Club 1023 | -7/Scraptown | Visited Abandonware Association 1028 | -7/Scraptown | Learned abandonware demo "POISON.EXE" 1038 | -7/Scraptown | Visited Derelict Rescue Squad 1050 | -7/Scraptown | Visited Junk Repository 1061 | -7/Scraptown | Visited Infowarlord's Domain 1065 | -7/Scraptown | Found Exp. Terrain Scan Processor 1165 | -7/Scraptown | Visited TADAMA 1187 | -7/Scraptown | Heard Great Nut preacher, LISTEN AND RECITE! 1211 | -7/Scraptown | Discovered new exit (range 5) 1214 | -7/Scraptown | Entered Factory 1214 | -5/Factory | Evolved 10 slots: Power x1, Propulsion x5, Utility x4 1559 | -5/Factory | Self-destructed Last Messages --------------- W-25 Informer sends out distress signal. Field strength at 55. Field strength at 50. Field strength at 45. Field strength at 40. Field strength at 35. Field strength at 30. Field strength at 25. Field strength at 20. Field strength at 15. Lgt. Nuclear Core destroyed. Stasis field depleted. Lgt. Assault Rifle destroyed. Penetrated by Slug. System Restoration Module destroyed. Slug penetrates Wall. Xenon Bombardment Thruster destroyed. Penetrated by Slug. Imp. Terrain Scanner destroyed. Slug penetrates Wall. Map ----- +----------------------------------------------------+ | # """ """ # # """" ?????????? | | # """ """ # # = """"? ????????? | | # """ """ + + """" ?????????? | | || # #g # """" ?#???????? | | ! #? ? #g # """" ????????? | | ############ # """? ?#??????? | | #####+#### ##g # = ? ##??????? | | g #? ?#???????? | | #############?#??????? | | T" g #???#?##?????#???????? | | " ##??##?##??#?????????? | | h #####?#??#?##????????? | | #??####?#? ?????????? | | ^ Y h ###?###??????????????? | | #####+#### ##########?#?#??## ???????????? | | ? ### ######??##??##?##?#??? ? ???????? | | " """ ### ###?#?###?##????###?????????????? | | "?""""" ### #??#????#??#??##????? ??????????? | | " """"" ### ###########??#???#?#??#?????????? | | ### # #??##??#???????????????? | | ?## # """ #??#????#??????????????? | | ###?####?#?# # "R ###?##????#????????????? | | ? ? ?# # """ #????#?????????????????? | | ? ???"? # # ##?##??????????????????? | | ? ?"??# # """ #?###??????????????????? | | ?????+ ; """ @#???#??????????????????? | | ? ???# # """ #?##???????????????????? | | ? ? ?????# # #??????????????????????? | | #??###?#???# g##########??????????????????????? | | ####????## ! ?????#?????????????????????????? | | ###?#??#?# Y ??????????????????????????????? | | #???????## ! ?? ????????????????????????????? | | #??#?????# ???????????????????????????????? | | ###??????# ???????????????????????????????? | | #????????# ???????????????????????????????? | | ####?????# ???????????????????????????????? | | ###??????# ???????????????????????????????? | | ###?#????# ???????????????????????????????? | | #####?##?#####+####?##???????????????????????????? | | ######### ###?????????????????????????? | | ######### ?#### ???????????????????????? | | #?######? #### ??????????????????????? | | ######### #### ?????????????????????? | | ######### ? ###? ????????????????????? | | + #### ? ???????????????????? | | ######### ###### ? ???????????????????? | | ######### ###### #??????????????????? | | ######### ###### #??????????????????? | | ######### + #??????????????????? | | ######### # ##?????????????????? | +----------------------------------------------------+ Best States ------------- Heat Dissipation 40 Energy Generation 14 Energy Capacity 250 Matter Stores 300 Matter Capacity 300 Sight Range 16 Terrain Scan Range 16 Terrain Scan Density 1010 Point Defense Rating 80 Evasion (%) 63 Offensive Hacking 10 Item Schematics ----------------- Nuclear Pulse Thruster | -5/Factory | Scanalyzed Robot Schematics ------------------ None Fabricated ------------ Nothing Repaired ---------- Imp. Terrain Scanner | 9% | -10/Materials Alien Tech Used ----------------- None Achievements -------------- None Challenges ------------ None Game ------ Seed AnalysisGunSystem Manual? 0 Play Time 00:45:24 Cumulative 9.8 hours Start 2025.05.09 @ 02:10:51 End 2025.05.11 @ 18:36:25 Sessions 3 Manual Loads 0 Difficulty Rogue Special Mode None Game No. 15 Rogue 15 Adventurer 0 Explorer 0 Win Type - Total 0 Types 0/0/0/0/0/0/0/0/0/0 Lore% 6 Gallery% 11 Achievement% 12 Wizard Run 0 Options --------- Layout 1 ASCII 0 Keyboard 1 Movement Numpad Keybinds 0 Fullscreen 2 Font 24/Smallcaps Map View 50x35 Zoom Use 49% Tactical HUD 0 Map Filters NONE Filters NONE Steam 1 RUN: deda9e30-c071-4d0a-9f5e-872b2aec018c